fUSD/lending_fUSD_20260515
["ID","MTS","AMOUNT","RATE_DAILY","PERIOD"]
[422307489,1778808652000,-818.569036,0.000329,7]
[422307493,1778808652000,-52150.74011397,0.00033,2]
[422307492,1778808652000,-46623.37967612,0.00033,5]
[422307498,1778808652000,-477.4234424,0.00033,30]
[422307494,1778808652000,-579.72134238,0.00033,7]
[422307477,1778808652000,-151.62967,0.000329,7]
[422307495,1778808652000,-37971.80207642,0.00033,3]
[422307574,1778808653000,-470.0,0.00033675,120]
[422307571,1778808653000,-151.0,0.00033656,7]
[422307555,1778808653000,-1861.36,0.000335,14]
[422307570,1778808653000,-151.0,0.00033656,7]
[422307564,1778808653000,-522.0,0.00033603,30]
[422307569,1778808653000,-41023.0,0.00033656,30]
[422307554,1778808653000,-1231.53069123,0.000335,2]
[422307566,1778808653000,-4191.0,0.00033603,30]
[422307568,1778808653000,-286.0,0.00033603,30]
[422307567,1778808653000,-396.0,0.00033603,30]
[422307563,1778808653000,-220.0,0.00033603,30]
[422307572,1778808653000,-329.0,0.00033673,120]
[422307565,1778808653000,-3245.0,0.00033603,30]
[422307575,1778808653000,-671.0,0.00033677,120]
[422307584,1778808653000,-1517.46570691,0.000339,120]
[422307577,1778808653000,-41023.0,0.0003382,30]
[422307586,1778808653000,-181.24620258,0.000339,120]
[422307588,1778808653000,-169.15583284,0.000339,120]
[422307576,1778808653000,-2810.45,0.000338,30]
[422307587,1778808653000,-1570.34705903,0.000339,120]
[422307579,1778808653000,-163.0,0.00033841,120]
[422307578,1778808653000,-216.0,0.0003384,120]
[422307580,1778808653000,-163.0,0.00033843,120]
[422307581,1778808653000,-575.0,0.00033866,11]
[422307582,1778808653000,-556.18,0.00033882,30]
[422307583,1778808653000,-182.57637513,0.000339,120]
[422307585,1778808653000,-177.90037405,0.000339,120]
[422307562,1778808653000,-494.06899012,0.000336,120]
[422307573,1778808653000,-959.0,0.00033674,120]
[422307561,1778808653000,-466.0,0.00033534,30]
[422307589,1778808653000,-171.00891916,0.000339,120]
[422307559,1778808653000,-485.0,0.00033509,30]
[422307529,1778808653000,-348.382631,0.00033164,7]
[422307535,1778808653000,-151.0,0.00033164,7]
[422307530,1778808653000,-348.382631,0.00033164,7]
[422307533,1778808653000,-151.0,0.00033164,7]
[422307528,1778808653000,-348.382631,0.00033164,7]
[422307534,1778808653000,-151.0,0.00033164,7]
[422307532,1778808653000,-151.0,0.00033164,7]
[422307536,1778808653000,-1194.74,0.000332,7]
[422307531,1778808653000,-348.382631,0.00033164,7]
[422307538,1778808653000,-151.0,0.00033328,7]
[422307539,1778808653000,-151.0,0.00033328,7]
[422307550,1778808653000,-360.0,0.00033452,30]
[422307549,1778808653000,-1988.13,0.000334,30]
[422307545,1778808653000,-1223.0,0.00033377,2]
[422307540,1778808653000,-151.0,0.00033328,7]
[422307544,1778808653000,-1270.0,0.00033377,2]
[422307537,1778808653000,-41023.0,0.00033328,30]
[422307548,1778808653000,-628.0,0.00033384,11]
[422307541,1778808653000,-151.0,0.00033328,7]
[422307546,1778808653000,-926.0,0.00033377,2]
[422307542,1778808653000,-151.0,0.00033328,7]
[422307543,1778808653000,-500.0,0.00033342,120]
[422307547,1778808653000,-3542.0,0.00033377,2]
[422307551,1778808653000,-179.3,0.00033459,4]
[422307557,1778808653000,-476.0,0.00033509,30]
[422307556,1778808653000,-906.0,0.00033509,30]
[422307558,1778808653000,-301.0,0.00033509,30]
[422307552,1778808653000,-179.3,0.00033459,4]
[422307553,1778808653000,-41023.0,0.00033492,30]
[422307560,1778808653000,-1953.0,0.00033509,30]
[422307591,1778808653000,-628.0,0.00033945,11]
[422307653,1778808653000,-500.0,0.00034895,120]
[422307590,1778808653000,-424.99897538,0.000339,120]
[422307622,1778808653000,-500.0,0.00034529,90]
[422307636,1778808653000,-165.78,0.00034717,30]
[422307637,1778808653000,-1500.0,0.00034795,2]
[422307638,1778808653000,-1988.13,0.000348,30]
[422307639,1778808653000,-2169.55567965,0.00034805,2]
[422307627,1778808653000,-220.0,0.00034603,30]
[422307630,1778808653000,-4191.0,0.00034603,30]
[422307640,1778808653000,-41023.0,0.00034805,30]
[422307629,1778808653000,-3245.0,0.00034603,30]
[422307628,1778808653000,-522.0,0.00034603,30]
[422307633,1778808653000,-41023.0,0.00034641,30]
[422307632,1778808653000,-286.0,0.00034603,30]
[422307631,1778808653000,-396.0,0.00034603,30]
[422307625,1778808653000,-1193.6,0.00034544,60]
[422307635,1778808653000,-2810.45,0.000347,30]
[422307643,1778808653000,-300.0,0.00034865,3]
[422307641,1778808653000,-1584.0,0.00034826,11]
[422307644,1778808653000,-300.0,0.00034865,3]
[422307642,1778808653000,-163.0,0.00034826,11]
[422307652,1778808653000,-220.7780611,0.00034895,120]
[422307647,1778808653000,-500.0,0.00034895,120]
[422307650,1778808653000,-500.0,0.00034895,120]
[422307645,1778808653000,-518.781704,0.00034895,120]
[422307648,1778808653000,-500.0,0.00034895,120]
[422307651,1778808653000,-500.0,0.00034895,120]
[422307649,1778808653000,-500.0,0.00034895,120]
[422307654,1778808653000,-500.0,0.00034895,120]
[422307594,1778808653000,-750.0,0.00034,2]
[422307634,1778808653000,-200.0,0.00034658,120]
[422307623,1778808653000,-161.97865524,0.00034529,90]
[422307646,1778808653000,-500.0,0.00034895,120]
[422307619,1778808653000,-1953.0,0.00034509,30]
[422307624,1778808653000,-466.0,0.00034534,30]
[422307600,1778808653000,-349.0,0.00034233,30]
[422307595,1778808653000,-1988.13,0.000341,30]
[422307592,1778808653000,-296.53407523,0.00033978,60]
[422307593,1778808653000,-41023.0,0.00033985,30]
[422307597,1778808653000,-41023.0,0.00034149,30]
[422307602,1778808653000,-500.0,0.00034254,120]
[422307598,1778808653000,-2458.5,0.00034182,7]
[422307596,1778808653000,-401.23,0.00034103,120]
[422307599,1778808653000,-1861.36,0.000342,14]
[422307605,1778808653000,-158.0,0.00034295,3]
[422307603,1778808653000,-41031.0,0.00034258,30]
[422307608,1778808653000,-150.0,0.00034311,2]
[422307612,1778808653000,-41023.0,0.00034477,30]
[422307601,1778808653000,-500.0,0.00034247,120]
[422307611,1778808653000,-366.82991459,0.00034444,30]
[422307604,1778808653000,-150.0,0.00034267,2]
[422307626,1778808653000,-443.88,0.00034544,60]
[422307621,1778808653000,-601.84,0.00034521,120]
[422307618,1778808653000,-485.0,0.00034509,30]
[422307620,1778808653000,-349.0,0.00034521,30]
[422307615,1778808653000,-906.0,0.00034509,30]
[422307617,1778808653000,-301.0,0.00034509,30]
[422307610,1778808653000,-41023.0,0.00034313,30]
[422307614,1778808653000,-628.0,0.00034507,12]
[422307609,1778808653000,-150.0,0.00034311,2]
[422307606,1778808653000,-150.0,0.00034311,2]
[422307613,1778808653000,-471.68295549,0.000345,2]
[422307616,1778808653000,-476.0,0.00034509,30]
[422307607,1778808653000,-150.0,0.00034311,2]
[422307686,1778808654000,-500.0,0.00034895,120]
[422307691,1778808654000,-714.5683662,0.00034895,120]
[422307700,1778808654000,-200.0,0.00034991,2]
[422307690,1778808654000,-500.0,0.00034895,120]
[422307683,1778808654000,-500.0,0.00034895,120]
[422307680,1778808654000,-500.0,0.00034895,120]
[422307685,1778808654000,-500.0,0.00034895,120]
[422307684,1778808654000,-500.0,0.00034895,120]
[422307682,1778808654000,-500.0,0.00034895,120]
[422307681,1778808654000,-500.0,0.00034895,120]
[422307689,1778808654000,-500.0,0.00034895,120]
[422307699,1778808654000,-449.0,0.00034991,2]
[422307696,1778808654000,-151.0,0.00034978,60]
[422307694,1778808654000,-193.75281562,0.00034914,3]
[422307693,1778808654000,-173.4382039,0.00034914,3]
[422307698,1778808654000,-500.0,0.00034991,2]
[422307697,1778808654000,-500.0,0.00034991,2]
[422307695,1778808654000,-41023.0,0.00034969,30]
[422307712,1778808654000,-1517.46570691,0.00035,120]
[422307707,1778808654000,-228.78547526,0.00035,30]
[422307679,1778808654000,-500.0,0.00034895,120]
[422307702,1778808654000,-200.0,0.00034991,2]
[422307692,1778808654000,-415.36,0.000349,14]
[422307687,1778808654000,-846.8901582,0.00034895,120]
[422307662,1778808654000,-500.0,0.00034895,120]
[422307678,1778808654000,-500.0,0.00034895,120]
[422307709,1778808654000,-150.0,0.00035,60]
[422307655,1778808654000,-500.0,0.00034895,120]
[422307665,1778808654000,-500.0,0.00034895,120]
[422307663,1778808654000,-500.0,0.00034895,120]
[422307659,1778808654000,-265.0232416,0.00034895,120]
[422307658,1778808654000,-918.0760511,0.00034895,120]
[422307664,1778808654000,-500.0,0.00034895,120]
[422307657,1778808654000,-500.0,0.00034895,120]
[422307660,1778808654000,-421.6934164,0.00034895,120]
[422307661,1778808654000,-500.0,0.00034895,120]
[422307656,1778808654000,-500.0,0.00034895,120]
[422307670,1778808654000,-500.0,0.00034895,120]
[422307669,1778808654000,-500.0,0.00034895,120]
[422307668,1778808654000,-500.0,0.00034895,120]
[422307666,1778808654000,-500.0,0.00034895,120]
[422307667,1778808654000,-500.0,0.00034895,120]
[422307671,1778808654000,-500.0,0.00034895,120]
[422307672,1778808654000,-892.292585,0.00034895,120]
[422307673,1778808654000,-548.1948626,0.00034895,120]
[422307675,1778808654000,-500.0,0.00034895,120]
[422307676,1778808654000,-786.1040589,0.00034895,120]
[422307674,1778808654000,-185.7781647,0.00034895,120]
[422307688,1778808654000,-665.2968157,0.00034895,120]
[422307677,1778808654000,-500.0,0.00034895,120]
[422307703,1778808654000,-200.0,0.00034991,2]
[422307704,1778808654000,-200.0,0.00034991,2]
[422307701,1778808654000,-200.0,0.00034991,2]
[422307736,1778808654000,-1988.13,0.000355,30]
[422307734,1778808654000,-187.16,0.00035463,30]
[422307739,1778808654000,-301.0,0.00035509,30]
[422307744,1778808654000,-163.0,0.00035533,120]
[422307741,1778808654000,-1953.0,0.00035509,30]
[422307742,1778808654000,-41031.0,0.00035516,30]
[422307735,1778808654000,-187.17,0.00035463,30]
[422307738,1778808654000,-476.0,0.00035509,30]
[422307743,1778808654000,-216.0,0.00035532,120]
[422307740,1778808654000,-485.0,0.00035509,30]
[422307737,1778808654000,-906.0,0.00035509,30]
[422307746,1778808654000,-163.0,0.00035535,120]
[422307756,1778808654000,-500.0,0.00035616,120]
[422307757,1778808654000,-500.0,0.00035616,120]
[422307749,1778808654000,-2810.45,0.000356,30]
[422307750,1778808654000,-220.0,0.00035603,30]
[422307752,1778808654000,-3245.0,0.00035603,30]
[422307753,1778808654000,-4191.0,0.00035603,30]
[422307754,1778808654000,-396.0,0.00035603,30]
[422307755,1778808654000,-286.0,0.00035603,30]
[422307748,1778808654000,-157.03,0.00035599,30]
[422307751,1778808654000,-522.0,0.00035603,30]
[422307747,1778808654000,-1584.0,0.0003558,11]
[422307732,1778808654000,-41023.0,0.00035461,30]
[422307745,1778808654000,-466.0,0.00035534,30]
[422307729,1778808654000,-307.92,0.00035339,120]
[422307710,1778808654000,-44748.11385867,0.00035,2]
[422307733,1778808654000,-187.16,0.00035463,30]
[422307705,1778808654000,-61701.16971157,0.00035,7]
[422307708,1778808654000,-442.22527115,0.00035,7]
[422307711,1778808654000,-182.57637513,0.00035,120]
[422307706,1778808654000,-235.15509297,0.00035,120]
[422307713,1778808654000,-177.90037405,0.00035,120]
[422307715,1778808654000,-424.99897538,0.00035,120]
[422307714,1778808654000,-1570.34705903,0.00035,120]
[422307718,1778808654000,-216.36,0.00035,120]
[422307720,1778808654000,-4692.39742782,0.00035,2]
[422307716,1778808654000,-245.55,0.00035,2]
[422307727,1778808654000,-151.0,0.00035294,14]
[422307719,1778808654000,-1194.74,0.00035,7]
[422307722,1778808654000,-2407.66293004,0.00035033,2]
[422307721,1778808654000,-500.0,0.00035013,120]
[422307723,1778808654000,-628.0,0.00035068,13]
[422307731,1778808654000,-190.5813667,0.00035444,7]
[422307724,1778808654000,-41023.0,0.00035133,30]
[422307728,1778808654000,-41023.0,0.00035297,30]
[422307725,1778808654000,-211.49469264,0.00035153,40]
[422307726,1778808654000,-1500.0,0.000352,7]
[422307730,1778808654000,-329.0,0.00035357,120]
[422307717,1778808654000,-19995.0,0.00035,2]
[422307799,1778808655000,-724.99268,0.00035954,7]
[422307788,1778808655000,-151.8,0.000359,120]
[422307795,1778808655000,-151.0,0.00035954,7]
[422307800,1778808655000,-724.99268,0.00035954,7]
[422307798,1778808655000,-299.892273,0.00035954,7]
[422307797,1778808655000,-724.99268,0.00035954,7]
[422307789,1778808655000,-673.0,0.000359,11]
[422307792,1778808655000,-151.0,0.00035954,7]
[422307791,1778808655000,-153.6029,0.00035954,7]
[422307787,1778808655000,-151.0,0.00035897,14]
[422307802,1778808655000,-634.203246,0.00035954,7]
[422307796,1778808655000,-724.99268,0.00035954,7]
[422307801,1778808655000,-634.203246,0.00035954,7]
[422307815,1778808655000,-800.0,0.00036,2]
[422307805,1778808655000,-151.0,0.00035978,60]
[422307803,1778808655000,-634.203246,0.00035954,7]
[422307806,1778808655000,-150.0,0.00035981,2]
[422307810,1778808655000,-1517.46570691,0.00036,120]
[422307807,1778808655000,-150.0,0.00036,2]
[422307809,1778808655000,-182.57637513,0.00036,120]
[422307813,1778808655000,-424.99897538,0.00036,120]
[422307812,1778808655000,-1570.34705903,0.00036,120]
[422307808,1778808655000,-221.96136262,0.00036,120]
[422307811,1778808655000,-177.90037405,0.00036,120]
[422307816,1778808655000,-1021.846359,0.00036,7]
[422307814,1778808655000,-156.0,0.00036,120]
[422307790,1778808655000,-41023.0,0.00035954,30]
[422307804,1778808655000,-634.203246,0.00035954,7]
[422307785,1778808655000,-500.0,0.00035845,45]
[422307759,1778808655000,-500.0,0.00035616,120]
[422307782,1778808655000,-676.67,0.00035845,45]
[422307766,1778808655000,-500.0,0.00035616,120]
[422307762,1778808655000,-500.0,0.00035616,120]
[422307764,1778808655000,-500.0,0.00035616,120]
[422307758,1778808655000,-500.0,0.00035616,120]
[422307761,1778808655000,-500.0,0.00035616,120]
[422307818,1778808655000,-1021.846359,0.00036,7]
[422307769,1778808655000,-500.0,0.00035616,120]
[422307765,1778808655000,-500.0,0.00035616,120]
[422307768,1778808655000,-500.0,0.00035616,120]
[422307760,1778808655000,-500.0,0.00035616,120]
[422307767,1778808655000,-500.0,0.00035616,120]
[422307763,1778808655000,-500.0,0.00035616,120]
[422307770,1778808655000,-500.0,0.00035616,120]
[422307786,1778808655000,-500.0,0.0003589,120]
[422307771,1778808655000,-500.0,0.00035616,120]
[422307772,1778808655000,-500.0,0.00035616,120]
[422307774,1778808655000,-200.0,0.00035616,120]
[422307781,1778808655000,-41023.0,0.00035789,30]
[422307779,1778808655000,-733.01,0.000357,120]
[422307778,1778808655000,-628.0,0.0003563,13]
[422307776,1778808655000,-245.26138688,0.00035616,2]
[422307780,1778808655000,-910.02,0.00035735,30]
[422307775,1778808655000,-857.14,0.00035616,2]
[422307777,1778808655000,-41023.0,0.00035625,30]
[422307783,1778808655000,-500.0,0.00035845,45]
[422307793,1778808655000,-151.0,0.00035954,7]
[422307794,1778808655000,-151.0,0.00035954,7]
[422307784,1778808655000,-500.0,0.00035845,45]
[422307773,1778808655000,-522.47351871,0.00035616,120]
[422307828,1778808655000,-187.17,0.00036011,30]
[422307867,1778808655000,-912.45,0.00036362,60]
[422307820,1778808655000,-151.0,0.00036,7]
[422307848,1778808655000,-41023.0,0.00036282,30]
[422307850,1778808655000,-151.0,0.00036282,7]
[422307856,1778808655000,-151.62967,0.00036282,7]
[422307857,1778808655000,-151.0,0.00036282,7]
[422307866,1778808655000,-259.545484,0.00036282,7]
[422307862,1778808655000,-151.0,0.00036282,7]
[422307859,1778808655000,-228.463734,0.00036282,7]
[422307863,1778808655000,-818.569036,0.00036282,7]
[422307855,1778808655000,-151.62967,0.00036282,7]
[422307865,1778808655000,-818.569036,0.00036282,7]
[422307858,1778808655000,-151.0,0.00036282,7]
[422307864,1778808655000,-151.0,0.00036282,7]
[422307860,1778808655000,-818.569036,0.00036282,7]
[422307869,1778808655000,-1270.0,0.00036377,2]
[422307879,1778808655000,-151.0,0.000364,7]
[422307874,1778808655000,-214719.0,0.000364,30]
[422307876,1778808655000,-348.382631,0.000364,7]
[422307870,1778808655000,-1223.0,0.00036377,2]
[422307871,1778808655000,-926.0,0.00036377,2]
[422307875,1778808655000,-348.382631,0.000364,7]
[422307872,1778808655000,-3542.0,0.00036377,2]
[422307868,1778808655000,-560.08,0.00036362,60]
[422307873,1778808655000,-415.36,0.000364,15]
[422307877,1778808655000,-348.382631,0.000364,7]
[422307878,1778808655000,-348.382631,0.000364,7]
[422307880,1778808655000,-440.801872,0.000364,7]
[422307821,1778808655000,-151.0,0.00036,7]
[422307851,1778808655000,-151.0,0.00036282,7]
[422307844,1778808655000,-1988.13,0.000362,30]
[422307861,1778808655000,-818.569036,0.00036282,7]
[422307849,1778808655000,-151.0,0.00036282,7]
[422307822,1778808655000,-151.0,0.00036,7]
[422307819,1778808655000,-1021.846359,0.00036,7]
[422307823,1778808655000,-151.0,0.00036,7]
[422307817,1778808655000,-1021.846359,0.00036,7]
[422307824,1778808655000,-151.0,0.00036,7]
[422307843,1778808655000,-628.0,0.00036192,14]
[422307825,1778808655000,-191.672634,0.00036,7]
[422307826,1778808655000,-187.16,0.00036011,30]
[422307829,1778808655000,-10000.0,0.00036036,2]
[422307833,1778808655000,-151.0,0.00036036,7]
[422307836,1778808655000,-420.019774,0.00036036,7]
[422307840,1778808655000,-41023.0,0.00036118,30]
[422307834,1778808655000,-420.019774,0.00036036,7]
[422307831,1778808655000,-151.0,0.00036036,7]
[422307827,1778808655000,-187.16,0.00036011,30]
[422307830,1778808655000,-151.0,0.00036036,7]
[422307842,1778808655000,-345.0,0.00036164,120]
[422307832,1778808655000,-151.0,0.00036036,7]
[422307854,1778808655000,-151.62967,0.00036282,7]
[422307846,1778808655000,-349.0,0.00036247,30]
[422307847,1778808655000,-172.0,0.00036247,30]
[422307845,1778808655000,-278.28268443,0.00036204,14]
[422307852,1778808655000,-151.0,0.00036282,7]
[422307839,1778808655000,-1000.0,0.00036048,2]
[422307837,1778808655000,-420.019774,0.00036036,7]
[422307838,1778808655000,-1000.0,0.00036048,2]
[422307835,1778808655000,-420.019774,0.00036036,7]
[422307841,1778808655000,-2458.5,0.00036153,30]
[422307853,1778808655000,-151.62967,0.00036282,7]
[422307906,1778808656000,-466.0,0.00036534,30]
[422307883,1778808656000,-151.0,0.000364,7]
[422307907,1778808656000,-163.0,0.0003654,11]
[422307898,1778808656000,-151.0,0.000365,7]
[422307895,1778808656000,-41023.0,0.00036446,30]
[422307887,1778808656000,-1083.466321,0.000364,7]
[422307886,1778808656000,-440.801872,0.000364,7]
[422307882,1778808656000,-440.801872,0.000364,7]
[422307893,1778808656000,-1083.466321,0.000364,7]
[422307884,1778808656000,-440.801872,0.000364,7]
[422307888,1778808656000,-1083.466321,0.000364,7]
[422307889,1778808656000,-151.0,0.000364,7]
[422307885,1778808656000,-151.0,0.000364,7]
[422307894,1778808656000,-163.0,0.00036415,11]
[422307892,1778808656000,-151.0,0.000364,7]
[422307891,1778808656000,-1083.466321,0.000364,7]
[422307881,1778808656000,-151.0,0.000364,7]
[422307896,1778808656000,-80000.193224,0.000365,10]
[422307890,1778808656000,-151.0,0.000364,7]
[422307897,1778808656000,-151.0,0.000365,7]
[422307901,1778808656000,-906.0,0.00036509,30]
[422307899,1778808656000,-151.0,0.000365,7]
[422307900,1778808656000,-151.0,0.000365,7]
[422307920,1778808656000,-150.0,0.0002,2]
[422307921,1778808656000,-12541.76429412,0.0003661,30]
[422307919,1778808656000,-511.95657192,0.0003661,30]
[422307914,1778808656000,-4191.0,0.00036603,30]
[422307918,1778808656000,-27969.27913396,0.0003661,30]
[422307916,1778808656000,-286.0,0.00036603,30]
[422307915,1778808656000,-396.0,0.00036603,30]
[422307912,1778808656000,-522.0,0.00036603,30]
[422307917,1778808656000,-500.0,0.00036609,5]
[422307911,1778808656000,-220.0,0.00036603,30]
[422307910,1778808656000,-187.17,0.00036559,30]
[422307908,1778808656000,-187.16,0.00036559,30]
[422307909,1778808656000,-187.16,0.00036559,30]
[422307903,1778808656000,-301.0,0.00036509,30]
[422307904,1778808656000,-485.0,0.00036509,30]
[422307905,1778808656000,-1953.0,0.00036509,30]
[422307902,1778808656000,-476.0,0.00036509,30]
[422307913,1778808656000,-3245.0,0.00036603,30]
[422307955,1778808657000,-492.69539266,0.0003695,2]
[422307951,1778808657000,-300.0,0.0003695,2]
[422307952,1778808657000,-300.0,0.0003695,2]
[422307948,1778808657000,-300.0,0.0003695,2]
[422307953,1778808657000,-300.0,0.0003695,2]
[422307950,1778808657000,-300.0,0.0003695,2]
[422307945,1778808657000,-300.0,0.0003695,2]
[422307959,1778808657000,-300.0,0.0003695,2]
[422307949,1778808657000,-300.0,0.0003695,2]
[422307954,1778808657000,-300.0,0.0003695,2]
[422307963,1778808657000,-22.63766078,0.0003695,2]
[422307957,1778808657000,-300.0,0.0003695,2]
[422307958,1778808657000,-300.0,0.0003695,2]
[422307961,1778808657000,-300.0,0.0003695,2]
[422307960,1778808657000,-604.46475032,0.0003695,2]
[422307962,1778808657000,-277.36233922,0.0003695,2]
[422307964,1778808657000,-300.0,0.0003695,2]
[422307965,1778808657000,-80.34052623,0.0003695,2]
[422307940,1778808657000,-1094.76341147,0.0003695,2]
[422307967,1778808657000,-215.333741,0.00020002,2]
[422307969,1778808657000,-1272.905344,0.00027387,7]
[422307956,1778808657000,-300.0,0.0003695,2]
[422307943,1778808657000,-300.0,0.0003695,2]
[422307936,1778808657000,-300.0,0.0003695,2]
[422307944,1778808657000,-300.0,0.0003695,2]
[422307968,1778808657000,-727.094656,0.00027387,7]
[422307922,1778808657000,-335.83995244,0.00036622,28]
[422307923,1778808657000,-366.82991459,0.00036667,30]
[422307930,1778808657000,-200.0,0.00036694,5]
[422307934,1778808657000,-163.0,0.0003686,11]
[422307929,1778808657000,-200.0,0.00036692,5]
[422307926,1778808657000,-500.0,0.00036685,120]
[422307925,1778808657000,-504.006544,0.00036685,120]
[422307932,1778808657000,-1638.09091643,0.000368,2]
[422307933,1778808657000,-158.0,0.0003681,3]
[422307928,1778808657000,-200.0,0.00036692,5]
[422307924,1778808657000,-500.0,0.00036685,120]
[422307927,1778808657000,-321.3,0.0003669,30]
[422307931,1778808657000,-628.0,0.00036753,14]
[422307935,1778808657000,-151.8,0.000369,120]
[422307946,1778808657000,-300.0,0.0003695,2]
[422307947,1778808657000,-300.0,0.0003695,2]
[422307939,1778808657000,-300.0,0.0003695,2]
[422307938,1778808657000,-300.0,0.0003695,2]
[422307942,1778808657000,-300.0,0.0003695,2]
[422307937,1778808657000,-300.0,0.0003695,2]
[422307941,1778808657000,-300.0,0.0003695,2]
[422307966,1778808657000,-156.571603,0.0002,2]
[422307982,1778808657000,-300.0,0.0003695,2]
[422307970,1778808657000,-447.4070341,0.0003695,2]
[422308003,1778808657000,-300.0,0.0003695,2]
[422307999,1778808657000,-262.38035502,0.0003695,2]
[422308004,1778808657000,-300.0,0.0003695,2]
[422307997,1778808657000,-1912.42447208,0.0003695,2]
[422308007,1778808657000,-300.0,0.0003695,2]
[422308000,1778808657000,-343.9837244,0.0003695,2]
[422308001,1778808657000,-526.89972735,0.0003695,2]
[422308002,1778808657000,-300.0,0.0003695,2]
[422308008,1778808657000,-864.46544763,0.0003695,2]
[422308005,1778808657000,-1147.19266559,0.0003695,2]
[422308006,1778808657000,-309.59330386,0.0003695,2]
[422308010,1778808657000,-1756.09027805,0.0003695,2]
[422308015,1778808657000,-300.0,0.0003695,2]
[422308012,1778808657000,-300.0,0.0003695,2]
[422308014,1778808657000,-310.90590822,0.0003695,2]
[422308017,1778808657000,-463.8581435,0.0003695,2]
[422308009,1778808657000,-300.0,0.0003695,2]
[422308013,1778808657000,-300.0,0.0003695,2]
[422308018,1778808657000,-300.0,0.0003695,2]
[422308016,1778808657000,-300.0,0.0003695,2]
[422307971,1778808657000,-300.0,0.0003695,2]
[422307998,1778808657000,-37.61964498,0.0003695,2]
[422307996,1778808657000,-300.0,0.0003695,2]
[422308011,1778808657000,-300.0,0.0003695,2]
[422307991,1778808657000,-2000.0,0.00027377,7]
[422307993,1778808657000,-1011.95,0.00027414,2]
[422307981,1778808657000,-300.0,0.0003695,2]
[422307979,1778808657000,-300.0,0.0003695,2]
[422307974,1778808657000,-300.0,0.0003695,2]
[422307973,1778808657000,-893.41080806,0.0003695,2]
[422307972,1778808657000,-1066.9267668,0.0003695,2]
[422307975,1778808657000,-726.07109283,0.0003695,2]
[422307978,1778808657000,-300.0,0.0003695,2]
[422307976,1778808657000,-300.0,0.0003695,2]
[422307977,1778808657000,-301.79443579,0.0003695,2]
[422308019,1778808657000,-577.18639742,0.0003695,2]
[422307980,1778808657000,-300.57306762,0.0003695,2]
[422307994,1778808657000,-1011.95,0.00027443,2]
[422307985,1778808657000,-300.0,0.0003695,2]
[422307984,1778808657000,-300.0,0.0003695,2]
[422307987,1778808657000,-300.0,0.0003695,2]
[422307986,1778808657000,-370.16929587,0.0003695,2]
[422307988,1778808657000,-428.27619926,0.0003695,2]
[422307990,1778808657000,-1933.17065798,0.00027367,7]
[422307995,1778808657000,-520.73305707,0.0003695,2]
[422307989,1778808657000,-670.0,0.00026571,10]
[422307992,1778808657000,-1011.95,0.00027386,2]
[422307983,1778808657000,-300.0,0.0003695,2]
[422308058,1778808658000,-300.0,0.0003695,2]